fUST/lending_fUST_20240518
["ID","MTS","AMOUNT","RATE_DAILY","PERIOD"]
[327324300,1715987438360,-328.22139918,0.00016435,2]
[327324302,1715987438369,-2114.19374467,0.00016435,2]
[327324304,1715987438379,-718.39963184,0.00016437,2]
[327324306,1715987438388,-275.16174657,0.00016437,2]
[327324308,1715987438398,-10482.46743188,0.00016438,3]
[327324310,1715987438407,-500.0,0.00016438,2]
[327324312,1715987438417,-385.99,0.00016438,2]
[327324314,1715987438427,-500.0,0.00016438,2]
[327324316,1715987438435,-500.0,0.00016438,4]
[327324318,1715987438445,-344.91685889,0.00016438,2]
[327324320,1715987438454,-471.4,0.00016438,2]
[327324322,1715987438463,-500.0,0.00016438,2]
[327324324,1715987438472,-500.0,0.00016438,2]
[327324326,1715987438481,-500.0,0.00016438,2]
[327324328,1715987438491,-500.0,0.00016438,2]
[327324330,1715987438500,-500.0,0.00016438,2]
[327324332,1715987438510,-500.0,0.00016438,2]
[327324334,1715987438519,-500.0,0.00016438,2]
[327324336,1715987438528,-500.0,0.00016438,2]
[327324338,1715987438537,-500.0,0.00016438,2]
[327324340,1715987438546,-500.0,0.00016438,2]
[327324342,1715987438556,-500.0,0.00016438,2]
[327324344,1715987438565,-500.0,0.00016438,2]
[327324345,1715987438575,-500.0,0.00016438,2]
[327324347,1715987438586,-500.0,0.00016438,2]
[327324349,1715987438598,-500.0,0.00016438,2]
[327324351,1715987438607,-518.52660179,0.00016438,2]
[327324353,1715987438617,-515.39551987,0.00016438,2]
[327324355,1715987438626,-500.0,0.00016438,2]
[327324357,1715987438636,-158.21638616,0.00016438,2]
[327324359,1715987438646,-206.75056341,0.00016438,2]
[327324361,1715987438655,-500.0,0.00016438,2]
[327324363,1715987438665,-500.89923349,0.00016438,2]
[327324364,1715987438676,-159.66382287,0.00016438,2]
[327324365,1715987438685,-500.0,0.00016438,2]
[327324366,1715987438695,-514.1380679,0.00016438,2]
[327324367,1715987438704,-262.79,0.00016438,2]
[327324368,1715987438714,-500.0,0.00016438,2]
[327324369,1715987438723,-505.89911409,0.00016438,2]
[327324370,1715987438732,-500.0,0.00016438,2]
[327324371,1715987438741,-500.0,0.00016438,2]
[327324372,1715987438750,-564.9621803,0.00016438,2]
[327324373,1715987438760,-500.0,0.00016438,2]
[327324374,1715987438769,-506.37290017,0.00016438,2]
[327324375,1715987438779,-187.91517803,0.00016438,2]
[327324377,1715987438788,-170.98823797,0.00016438,2]
[327324379,1715987438797,-500.0,0.00016438,2]
[327324381,1715987438806,-500.0,0.00016438,2]
[327324383,1715987438815,-500.0,0.00016438,2]
[327324385,1715987438824,-500.0,0.00016438,2]
[327324387,1715987438833,-500.0,0.00016438,2]
[327324389,1715987438842,-500.0,0.00016438,2]
[327324391,1715987438851,-503.51167733,0.00016438,2]
[327324393,1715987438860,-500.0,0.00016438,2]
[327324395,1715987438869,-500.0,0.00016438,2]
[327324397,1715987438879,-500.0,0.00016438,2]
[327324399,1715987438887,-500.0,0.00016438,2]
[327324401,1715987438896,-709.64,0.00016438,2]
[327324403,1715987438905,-500.0,0.00016438,2]
[327324405,1715987438914,-500.0,0.00016438,2]
[327324407,1715987438924,-500.0,0.00016438,2]
[327324409,1715987438932,-500.0,0.00016438,2]
[327324411,1715987438941,-502.51126909,0.00016438,2]
[327324413,1715987438950,-500.0,0.00016438,2]
[327324415,1715987438959,-500.0,0.00016438,2]
[327324417,1715987438968,-5742.29,0.00016438,2]
[327324419,1715987438977,-500.0,0.00016438,2]
[327324421,1715987438986,-447.75220669,0.00016438,2]
[327324423,1715987438995,-500.0,0.00016438,2]
[327324425,1715987439004,-500.0,0.00016438,2]
[327324427,1715987439013,-500.0,0.00016438,2]
[327324428,1715987439023,-500.0,0.00016438,2]
[327324430,1715987439032,-500.0,0.00016438,2]
[327324432,1715987439041,-500.0,0.00016438,2]
[327324434,1715987439051,-376.95872008,0.00016438,2]
[327324436,1715987439060,-500.0,0.00016438,2]
[327324438,1715987439069,-609.67,0.00016438,2]
[327324440,1715987439078,-500.0,0.00016438,2]
[327324442,1715987439087,-500.0,0.00016438,2]
[327324445,1715987439096,-500.0,0.00016438,2]
[327324446,1715987439106,-503.17578765,0.00016438,2]
[327324448,1715987439115,-502.1537635,0.00016438,2]
[327324451,1715987439125,-500.0,0.00016438,2]
[327324453,1715987439135,-500.0,0.00016438,2]
[327324455,1715987439144,-500.0,0.00016438,2]
[327324457,1715987439154,-500.0,0.00016438,2]
[327324459,1715987439164,-500.0,0.00016438,2]
[327324460,1715987439174,-4706.14,0.00016438,2]
[327324462,1715987439183,-500.0,0.00016438,2]
[327324464,1715987439195,-500.0,0.00016438,2]
[327324466,1715987439204,-500.0,0.00016438,2]
[327324469,1715987439214,-2695.42,0.00016438,2]
[327324470,1715987439223,-500.0,0.00016438,2]
[327324472,1715987439232,-6153.07,0.00016438,2]
[327324474,1715987439242,-500.0,0.00016438,2]
[327324477,1715987439251,-21462.07,0.00016438,2]
[327324478,1715987439261,-500.0,0.00016438,2]
[327324480,1715987439270,-500.0,0.00016438,2]
[327324482,1715987439279,-500.0,0.00016438,2]
[327324484,1715987439289,-500.0,0.00016438,2]
[327324486,1715987439298,-500.0,0.00016438,2]
[327324488,1715987439307,-500.0,0.00016438,2]
[327324490,1715987439316,-500.0,0.00016438,2]
[327324492,1715987439326,-500.0,0.00016438,2]
[327324494,1715987439335,-500.0,0.00016438,2]
[327324496,1715987439344,-500.0,0.00016438,2]
[327324498,1715987439353,-3440.53,0.00016438,2]
[327324500,1715987439363,-500.0,0.00016438,2]
[327324503,1715987439372,-500.0,0.00016438,2]
[327324505,1715987439382,-500.0,0.00016438,2]
[327324507,1715987439391,-500.0,0.00016438,2]
[327324509,1715987439400,-500.0,0.00016438,2]
[327324511,1715987439410,-500.0,0.00016438,2]
[327324512,1715987439419,-500.0,0.00016438,2]
[327324514,1715987439429,-500.47322055,0.00016438,2]
[327324516,1715987439438,-500.0,0.00016438,2]
[327324518,1715987439448,-500.0,0.00016438,2]
[327324520,1715987439457,-500.0,0.00016438,2]
[327324522,1715987439466,-500.0,0.00016438,2]
[327324524,1715987439476,-500.0,0.00016438,2]
[327324526,1715987439485,-500.0,0.00016438,2]
[327324528,1715987439494,-500.0,0.00016438,2]
[327324531,1715987439503,-500.0,0.00016438,2]
[327324533,1715987439512,-522.94149242,0.00016438,2]
[327324535,1715987439522,-500.0,0.00016438,2]
[327324537,1715987439531,-500.0,0.00016438,2]
[327324539,1715987439540,-500.0,0.00016438,2]
[327324541,1715987439549,-1238.78,0.00016438,2]
[327324543,1715987439559,-500.0,0.00016438,2]
[327324545,1715987439570,-500.0,0.00016438,2]
[327324547,1715987439579,-446.01180885,0.00016438,2]
[327324549,1715987439588,-500.0,0.00016438,2]
[327324551,1715987439602,-642.63361152,0.00016438,2]
[327324553,1715987439611,-584.77878106,0.00016438,2]
[327324555,1715987439620,-500.0,0.00016438,2]
[327324557,1715987439630,-500.0,0.00016438,2]
[327324559,1715987439639,-530.42,0.00016438,2]
[327324561,1715987439648,-500.0,0.00016438,2]
[327324563,1715987439658,-600.94,0.00016438,2]
[327324565,1715987439668,-806.46,0.00016438,2]
[327324567,1715987439680,-3710.85,0.00016438,2]
[327324569,1715987439689,-500.0,0.00016438,2]
[327324571,1715987439698,-500.0,0.00016438,2]
[327324573,1715987439708,-500.0,0.00016438,2]
[327324575,1715987439717,-177.16,0.00016438,2]
[327324577,1715987439726,-500.0,0.00016438,2]
[327324579,1715987439735,-500.0,0.00016438,2]
[327324581,1715987439744,-500.0,0.00016438,2]
[327324582,1715987439753,-1103.94,0.00016438,2]
[327324584,1715987439762,-500.0,0.00016438,2]
[327324586,1715987439772,-500.0,0.00016438,2]
[327324588,1715987439781,-428.28,0.00016438,2]
[327324590,1715987439791,-500.0,0.00016438,2]
[327324593,1715987439800,-516.9,0.00016438,2]
[327324595,1715987439810,-500.0,0.00016438,2]
[327324597,1715987439819,-500.0,0.00016438,2]
[327324599,1715987439828,-500.0,0.00016438,2]
[327324601,1715987439837,-2568.28,0.00016438,2]
[327324603,1715987439846,-500.0,0.00016438,2]
[327324605,1715987439855,-500.0,0.00016438,2]
[327324606,1715987439864,-500.0,0.00016438,2]
[327324608,1715987439873,-408.5122725,0.00016439,2]
[327324611,1715987439882,-204.3360345,0.00016439,2]
[327324613,1715987439891,-204.3360345,0.00016439,2]
[327324615,1715987439901,-204.3360345,0.00016439,2]
[327324616,1715987439910,-204.3360345,0.00016439,2]
[327324618,1715987439919,-204.3360345,0.00016439,2]
[327324621,1715987439929,-416.98047207,0.00016481,2]
[327324623,1715987439938,-12703.0,0.000165,2]
[327324625,1715987439947,-274.09997115,0.000165,2]
[327324627,1715987439957,-4221.46001999,0.00016571,2]
[327324629,1715987439968,-63793.78565467,0.00016612,2]
[327324631,1715987439977,-472.5,0.00016622,2]
[327324633,1715987439986,-472.5,0.00016622,3]
[327324635,1715987439995,-155.67454446,0.0001671,2]
[327324636,1715987440005,-500.0,0.00016712,2]
[327324638,1715987440015,-500.0,0.00016712,4]
[327324640,1715987440026,-500.0,0.00016712,2]
[327324642,1715987440036,-500.0,0.00016712,2]
[327324644,1715987440045,-203.42,0.00016712,2]
[327324646,1715987440056,-385.54945374,0.00016712,2]
[327324648,1715987440066,-500.0,0.00016712,2]
[327324650,1715987440075,-500.0,0.00016712,2]
[327324653,1715987440085,-500.0,0.00016712,2]
[327324654,1715987440094,-500.0,0.00016712,2]
[327324657,1715987440104,-500.0,0.00016712,2]
[327324659,1715987440113,-500.0,0.00016712,2]
[327324661,1715987440123,-500.0,0.00016712,2]
[327324662,1715987440133,-709.64,0.00016712,2]
[327324664,1715987440142,-500.0,0.00016712,2]
[327324666,1715987440152,-500.0,0.00016712,2]
[327324668,1715987440161,-500.0,0.00016712,2]
[327324670,1715987440170,-5742.29,0.00016712,2]
[327324672,1715987440181,-500.0,0.00016712,2]
[327324674,1715987440190,-500.0,0.00016712,2]
[327324676,1715987440199,-609.67,0.00016712,2]
[327324678,1715987440209,-500.0,0.00016712,2]
[327324680,1715987440219,-500.0,0.00016712,2]
[327324682,1715987440229,-500.0,0.00016712,2]
[327324684,1715987440238,-4706.14,0.00016712,2]
[327324686,1715987440248,-2695.42,0.00016712,2]
[327324688,1715987440258,-6153.07,0.00016712,2]
[327324690,1715987440267,-500.0,0.00016712,2]
[327324692,1715987440277,-21462.07,0.00016712,2]
[327324694,1715987440286,-560.01,0.00016712,2]
[327324696,1715987440296,-607.06,0.00016712,2]
[327324698,1715987440306,-500.0,0.00016712,2]
[327324700,1715987440315,-500.0,0.00016712,2]
[327324702,1715987440325,-3440.53,0.00016712,2]
[327324704,1715987440335,-151.0,0.00016712,2]
[327324706,1715987440344,-500.0,0.00016712,2]
[327324708,1715987440354,-151.0,0.00016712,2]
[327324710,1715987440364,-500.0,0.00016712,2]
[327324712,1715987440374,-1947.640822,0.00016712,2]
[327324714,1715987440383,-1947.640822,0.00016712,2]
[327324716,1715987440393,-500.0,0.00016712,2]
[327324718,1715987440402,-500.0,0.00016712,2]
[327324720,1715987440412,-500.0,0.00016712,2]
[327324722,1715987440422,-1238.78,0.00016712,2]
[327324724,1715987440433,-620.55,0.00016712,2]
[327324726,1715987440443,-530.42,0.00016712,2]
[327324728,1715987440452,-500.0,0.00016712,2]
[327324730,1715987440462,-600.94,0.00016712,2]
[327324732,1715987440472,-806.46,0.00016712,2]
[327324734,1715987440483,-3710.85,0.00016712,2]
[327324736,1715987440492,-500.0,0.00016712,2]
[327324738,1715987440503,-151.0,0.00016712,2]
[327324740,1715987440513,-151.0,0.00016712,2]
[327324741,1715987440522,-500.0,0.00016712,2]
[327324742,1715987440532,-500.0,0.00016712,2]
[327324743,1715987440542,-151.0,0.00016712,2]
[327324744,1715987440551,-1103.94,0.00016712,2]
[327324745,1715987440561,-500.0,0.00016712,2]
[327324746,1715987440571,-151.0,0.00016712,2]
[327324747,1715987440581,-500.0,0.00016712,2]
[327324748,1715987440591,-375.08,0.00016712,2]
[327324749,1715987440605,-500.0,0.00016712,2]
[327324750,1715987440615,-2568.28,0.00016712,2]
[327324751,1715987440625,-533.592003,0.00016816,2]
[327324752,1715987440635,-231.277296,0.00016816,2]
[327324753,1715987440646,-231.277296,0.00016816,2]
[327324754,1715987440656,-151.0,0.00016816,2]
[327324755,1715987440666,-151.0,0.00016816,2]
[327324756,1715987440678,-151.0,0.00016816,2]
[327324757,1715987440689,-630.26465067,0.00016883,2]
[327324759,1715987440699,-160.85291017,0.00016983,2]
[327324761,1715987440708,-177.69105564,0.00016983,2]
[327324763,1715987440718,-1704.29237534,0.00016984,2]
[327324765,1715987440727,-154.84509312,0.00016984,2]
[327324767,1715987440737,-4205.11921,0.00016984,2]
[327324769,1715987440747,-4205.11921,0.00016984,2]
[327324771,1715987440756,-213.552262,0.00016984,2]
[327324773,1715987440767,-1546.857652,0.00016984,2]
[327324774,1715987440776,-1546.857652,0.00016984,2]
[327324776,1715987440786,-151.0,0.00016984,2]
[327324777,1715987440795,-1887.510066,0.00016984,2]
[327324778,1715987440911,-1887.510066,0.00016984,2]
[327324779,1715987440921,-151.0,0.00016984,2]
[327324780,1715987440931,-151.0,0.00016984,2]
[327324781,1715987440940,-323.446998,0.00016984,2]
[327324782,1715987440949,-323.446998,0.00016984,2]
[327324783,1715987440959,-151.0,0.00016984,2]
[327324784,1715987440968,-191.441705,0.00016984,2]
[327324785,1715987440978,-166.867428,0.00016984,2]
[327324786,1715987440987,-544.329561,0.00016984,2]
[327324787,1715987440997,-504.91683126,0.00016986,2]
[327324788,1715987441006,-500.0,0.00016986,4]
[327324789,1715987441016,-151.0,0.00016986,2]
[327324790,1715987441025,-172.428668,0.00016986,2]
[327324791,1715987441035,-172.428668,0.00016986,2]
[327324792,1715987441044,-151.5885,0.00016986,2]
[327324793,1715987441054,-500.0,0.00016986,2]
[327324794,1715987441064,-151.0,0.00016986,2]
[327324795,1715987441074,-928.00602,0.00016986,2]
[327324796,1715987441083,-928.00602,0.00016986,2]
[327324797,1715987441093,-151.0,0.00016986,2]
[327324798,1715987441102,-151.0,0.00016986,2]
[327324799,1715987441112,-500.0,0.00016986,2]
[327324800,1715987441121,-151.0,0.00016986,2]
[327324801,1715987441131,-500.0,0.00016986,2]
[327324802,1715987441139,-500.0,0.00016986,2]
[327324803,1715987441149,-151.0,0.00016986,2]
[327324804,1715987441159,-151.0,0.00016986,2]
[327324805,1715987441169,-850.729666,0.00016986,2]
[327324806,1715987441181,-850.729666,0.00016986,2]
[327324807,1715987441190,-151.0,0.00016986,2]
[327324808,1715987441200,-151.0,0.00016986,2]
[327324809,1715987441209,-154.507713,0.00016986,2]
[327324810,1715987441219,-154.507713,0.00016986,2]
[327324811,1715987441228,-151.0,0.00016986,2]
[327324812,1715987441237,-174.640218,0.00016986,2]
[327324813,1715987441247,-174.640218,0.00016986,2]
[327324814,1715987441256,-500.0,0.00016986,2]
[327324816,1715987441266,-151.0,0.00016986,2]
[327324818,1715987441275,-151.0,0.00016986,2]
[327324820,1715987441284,-151.0,0.00016986,2]
[327324822,1715987441294,-243.142303,0.00016986,2]
[327324824,1715987441304,-608.819002,0.00016986,2]
[327324826,1715987441313,-243.142303,0.00016986,2]
[327324828,1715987441322,-608.819002,0.00016986,2]
[327324830,1715987441332,-709.64,0.00016986,2]
[327324832,1715987441341,-500.0,0.00016986,2]
[327324834,1715987441352,-231.277296,0.00016986,2]
[327324836,1715987441362,-231.277296,0.00016986,2]
[327324838,1715987441372,-151.0,0.00016986,2]
[327324840,1715987441381,-5742.29,0.00016986,2]
[327324842,1715987441390,-151.0,0.00016986,2]
[327324844,1715987441399,-594.58,0.00016986,2]
[327324846,1715987441409,-500.0,0.00016986,2]
[327324848,1715987441419,-609.67,0.00016986,2]
[327324850,1715987441432,-500.0,0.00016986,2]
[327324852,1715987441442,-500.0,0.00016986,2]
[327324854,1715987441451,-151.0,0.00016986,2]
[327324856,1715987441460,-151.0,0.00016986,2]
[327324858,1715987441470,-500.0,0.00016986,2]
[327324860,1715987441479,-4706.14,0.00016986,2]
[327324862,1715987441489,-185.41447467,0.00016986,2]
[327325034,1715987443152,-204.3360345,0.00016439,2]
[327325036,1715987443161,-59.957703,0.00016622,3]
[327326771,1715987538141,273.37336231,9.9e-05,2]
[327326772,1715987545969,166.87809831,9.9e-05,2]
[327326775,1715988429122,-186.86508832,9.993e-05,2]
[327326776,1715988429142,-1897.3147211,9.993e-05,2]
[327326777,1715988429163,-1370.95537712,9.994e-05,2]
[327326778,1715988434146,-1094.353573,9.994e-05,2]
[327326779,1715988434167,-719.86717686,9.994e-05,2]
[327326780,1715988434189,-154.70605849,9.995e-05,2]
[327326781,1715988434224,-2114.19374467,9.995e-05,2]
[327326782,1715988434248,-194.42788305,9.995e-05,2]
[327326783,1715988434270,-1885.19395395,9.996e-05,2]
[327326784,1715988434292,-452.46697714,9.996e-05,2]
[327326785,1715988434316,-1249.35470555,0.00013232,2]
[327326786,1715988434338,-328.22139918,0.00013314,2]
[327326787,1715988434359,-227.48163075,0.00013314,2]
[327326788,1715988434380,-155.00453071,0.00013314,2]
[327326789,1715988434402,-294.51792014,0.00013314,2]
[327326790,1715988434426,-154.99717999,0.00013314,2]
[327326791,1715988434447,-184.78712659,0.00013314,2]
[327326792,1715988436117,-76.19688415,0.00013314,2]
[327326793,1715988436138,-301.90581559,0.00013314,2]
[327326794,1715988436158,-163.88159138,0.00013314,2]
[327326795,1715988436179,-166.7051548,0.00013314,2]
[327326796,1715988436200,-211.6765572,0.00013314,2]
[327326797,1715988436220,-154.86067302,0.00013314,2]
[327326798,1715988436241,-155.08932596,0.00013315,2]
[327326799,1715988436260,-154.82968734,0.00013315,2]
[327326800,1715988436281,-4665.13457031,0.00013315,2]
[327326801,1715988436303,-5368.93549228,0.00013316,2]
[327326802,1715988447106,-1895.1614931,0.00013315,2]
[327326803,1715988447126,-225.75590546,0.00013315,2]
[327326804,1715988447147,-351.44654295,0.00013316,2]
[327326806,1715988548122,-353.9256503,0.00013314,2]
[327326807,1715988548144,-193.53652901,0.00013314,2]
[327326808,1715988548166,-501.15096459,0.00013314,2]
[327326809,1715988548188,-625.05696397,0.00013314,2]
[327326810,1715988548210,-605.02921649,0.00013314,2]
[327326811,1715988548230,-225.77602293,0.00013315,2]
[327326812,1715988548250,-1907.94838169,0.00013315,2]
[327326813,1715988548271,-19179.61796477,0.00013316,2]
[327326814,1715988548291,-590.3458183,0.00013332,2]
[327326815,1715988548311,-3000.0,0.00013699,2]
[327326816,1715988548331,-778.2875298,0.00013699,2]
[327326817,1715988548357,-275.16174657,0.000137,2]
[327326818,1715988548382,-3390.5117,0.00014,2]
[327326819,1715988548403,-302.9044461,0.00014426,2]
[327326820,1715988548423,-155.67454446,0.00014426,2]
[327326824,1715988618375,20157.07252102,0.00014444,2]
[327326825,1715988618396,4742.92747898,0.00014444,2]
[327326862,1715988632208,-477.2561439,0.000149,2]
[327326864,1715988632219,-986.26212673,0.00014999,2]
[327326873,1715988632316,-2404.24957327,0.00014999,2]
[327326875,1715988632326,-1148.90229176,0.00015,2]
[327326877,1715988632336,-2107.25657902,0.00015,2]
[327326879,1715988632346,-2400.26192892,0.00015,2]
[327326881,1715988632356,-80000.0,0.00015,2]
[327326883,1715988632366,-942.40757179,0.00015,2]
[327326885,1715988632376,-217.70669671,0.00015,2]
[327326887,1715988632385,-1681.89915885,0.00015,2]
[327326889,1715988632395,-2795.18883811,0.00015,2]
[327326891,1715988632405,-188.89226747,0.00015,2]
[327326893,1715988632415,-477.25614386,0.0001526,2]
[327326895,1715988632424,-477.25614386,0.00015619,2]
[327326897,1715988632433,-189.55440765,0.00015898,2]
[327326899,1715988632444,-477.25614386,0.00015979,2]
[327326901,1715988632453,-8241.84365766,0.00015994,2]
[327326903,1715988632463,-154.84509312,0.00015994,2]
[327326905,1715988632473,-177.69105564,0.00015994,2]
[327326907,1715988632483,-182.33869438,0.00015994,2]
[327326909,1715988632492,-160.85291017,0.00015995,2]
[327326911,1715988632501,-297.25726222,0.00016,2]
[327326913,1715988632511,-3917.01377119,0.00016,2]
[327327015,1715988638405,-4049.27898104,0.00016,2]
[327327017,1715988638416,-5019.36336665,0.00016,2]
[327327019,1715988638426,-4296.94494415,0.00016333,2]
[327327021,1715988638437,-477.25614386,0.00016338,2]
[327327023,1715988638447,-63793.78565467,0.00016338,2]
[327327025,1715988638456,-2000.0,0.00016338,2]
[327327027,1715988638466,-653.08641699,0.00016432,2]
[327327029,1715988638476,-10482.46743188,0.00016433,3]
[327327031,1715988638486,-7344.3700949,0.00016433,2]
[327327033,1715988638495,-1593.66828313,0.00016433,2]
[327327035,1715988638505,-5537.60700728,0.00016433,2]
[327327037,1715988638515,-2677.97514069,0.00016433,2]
[327327039,1715988638525,-26204.08668533,0.00016433,2]
[327327041,1715988638535,-492.31289669,0.00016433,2]
[327327043,1715988638545,-690.11886562,0.00016434,2]
[327327045,1715988638555,-154.70605849,0.00016434,2]
[327327047,1715988638565,-9619.00393063,0.00016434,2]
[327327049,1715988638580,-9164.91089402,0.00016434,2]
[327327051,1715988638590,-840.4039915,0.00016436,2]
[327327054,1715988638600,-1625.19373538,0.00016437,2]
[327327055,1715988638611,-157.22542668,0.00016437,2]
[327327058,1715988638621,-500.0,0.00016438,2]
[327327060,1715988638631,-500.0,0.00016438,2]
[327327061,1715988638641,-500.0,0.00016438,2]
[327327063,1715988638652,-500.0,0.00016438,2]
[327327065,1715988638662,-500.0,0.00016438,2]
[327327068,1715988638672,-496.91563878,0.00016438,2]
[327327070,1715988638683,-500.0,0.00016438,2]
[327327072,1715988638693,-496.33271539,0.00016438,2]
[327327073,1715988638703,-500.0,0.00016438,2]
[327327075,1715988638713,-501.06667719,0.00016438,2]
[327327077,1715988638723,-500.0,0.00016438,2]
[327327079,1715988638733,-500.0,0.00016438,2]
[327327080,1715988638742,-500.0,0.00016438,2]
[327327082,1715988638752,-549.2543388,0.00016438,2]
[327327084,1715988638762,-500.0,0.00016438,2]
[327327086,1715988638772,-500.0,0.00016438,2]
[327327087,1715988638781,-500.0,0.00016438,2]
[327327089,1715988638791,-500.0,0.00016438,2]
[327327091,1715988638800,-500.0,0.00016438,2]
[327327092,1715988638810,-500.0,0.00016438,2]
[327327094,1715988638820,-500.0,0.00016438,2]
[327327096,1715988638829,-500.0,0.00016438,2]
[327327098,1715988638839,-500.0,0.00016438,2]
[327327100,1715988638849,-500.0,0.00016438,2]
[327327101,1715988638859,-500.79962334,0.00016438,2]
[327327103,1715988638868,-500.0,0.00016438,2]
[327327105,1715988638878,-500.0,0.00016438,2]
[327327106,1715988638888,-500.90492189,0.00016438,2]
[327327108,1715988638897,-500.0,0.00016438,2]
[327327110,1715988638906,-502.35738942,0.00016438,2]
[327327111,1715988638915,-500.0,0.00016438,2]
[327327113,1715988638925,-500.0,0.00016438,2]
[327327115,1715988638934,-500.0,0.00016438,2]
[327327117,1715988638944,-268.35997529,0.00016438,2]
[327327119,1715988638953,-500.0,0.00016438,2]
[327327120,1715988638963,-500.0,0.00016438,2]
[327327122,1715988638974,-500.0,0.00016438,2]
[327327124,1715988638984,-500.69953264,0.00016438,2]
[327327126,1715988638994,-500.0,0.00016438,2]
[327327128,1715988639004,-500.0,0.00016438,2]
[327327130,1715988639014,-500.0,0.00016438,2]
[327327131,1715988639024,-500.0,0.00016438,2]
[327327133,1715988639034,-500.0,0.00016438,2]
[327327135,1715988639045,-500.0,0.00016438,2]
[327327137,1715988639055,-543.09779564,0.00016438,2]
[327327138,1715988639065,-500.0,0.00016438,2]
[327327140,1715988639075,-500.0,0.00016438,2]
[327327142,1715988639086,-500.0,0.00016438,2]
[327327144,1715988639096,-500.0,0.00016438,2]
[327327145,1715988639106,-500.0,0.00016438,2]
[327327147,1715988639116,-500.0,0.00016438,2]
[327327149,1715988639126,-500.0,0.00016438,2]
[327327151,1715988639136,-501.78493775,0.00016438,2]
[327327152,1715988639145,-500.0,0.00016438,2]
[327327154,1715988639154,-501.73717795,0.00016438,2]
[327327156,1715988639164,-500.0,0.00016438,2]
[327327158,1715988639176,-500.0,0.00016438,2]
[327327160,1715988639186,-500.0,0.00016438,2]
[327327162,1715988639196,-500.0,0.00016438,2]
[327327163,1715988639206,-502.33216634,0.00016438,2]
[327327165,1715988639216,-500.0,0.00016438,2]
[327327167,1715988639226,-501.4775317,0.00016438,2]
[327327169,1715988639236,-500.0,0.00016438,2]
[327327171,1715988639246,-500.2004031,0.00016438,2]
[327327172,1715988639255,-500.0,0.00016438,2]
[327327174,1715988639266,-500.0,0.00016438,2]
[327327176,1715988639276,-500.0,0.00016438,2]
[327327178,1715988639286,-500.0,0.00016438,2]
[327327180,1715988639295,-500.0,0.00016438,2]
[327327182,1715988639305,-500.0,0.00016438,2]
[327327183,1715988639315,-500.0,0.00016438,2]
[327327185,1715988639326,-500.0,0.00016438,2]
[327327187,1715988639336,-500.0,0.00016438,2]
[327327189,1715988639346,-500.0,0.00016438,2]
[327327191,1715988639356,-500.0,0.00016438,2]
[327327193,1715988639367,-500.0,0.00016438,2]
[327327195,1715988639377,-500.0,0.00016438,2]
[327327196,1715988639387,-500.0,0.00016438,2]
[327327198,1715988639397,-500.0,0.00016438,2]
[327327200,1715988639407,-500.0,0.00016438,2]
[327327202,1715988639417,-501.85975324,0.00016438,2]
[327327204,1715988639427,-500.0,0.00016438,2]
[327327205,1715988639438,-500.0,0.00016438,2]
[327327207,1715988639449,-500.0,0.00016438,2]
[327327209,1715988639460,-504.49246044,0.00016438,2]
[327327211,1715988639471,-501.56644249,0.00016438,2]
[327327213,1715988639482,-500.0,0.00016438,2]
[327327215,1715988639493,-500.0,0.00016438,2]